bitfinex-derivatives/quotes_ETHF0:USTF0_20250411
["timestamp","ask_amount","ask_price","bid_price","bid_amount"]
[1744338926082,1.29613,1544.1,1544.0,12.54660738]
[1744338926483,1.29613,1544.1,1544.0,13.33021422]
[1744338926983,1.29613,1544.1,1544.0,3.28700684]
[1744338927687,1.29613,1544.1,1544.0,0.78360684]
[1744338927984,3.41483,1544.1,1544.0,0.78360684]
[1744338928377,1.29621,1544.0,1543.9,2.51310968]
[1744338929187,3.76501,1544.0,1543.9,2.51310968]
[1744338930183,1.29638,1543.8,1543.7,25.00111638]
[1744338930490,4.50418,1543.8,1543.7,9.3222818]
[1744338930685,9.50418,1543.8,1543.7,9.3222818]
[1744338930879,11.97298,1543.8,1543.7,9.3222818]
[1744338931182,1.29663,1543.5,1543.4,11.7536818]
[1744338931577,1.29663,1543.5,1543.4,9.3222818]
[1744338931774,1.29663,1543.5,1543.4,6.96874039]
[1744338932182,5.86763,1543.5,1543.4,6.96874039]
[1744338933587,1.29663,1543.5,1543.4,6.96874039]
[1744338933889,1.29663,1543.5,1543.4,9.40834039]
[1744338936291,1.29663,1543.5,1543.4,2.4396]
[1744338936496,12.69883785,1543.7,1543.4,10.6474]
[1744338936792,13.99535785,1543.7,1543.6,3.2078]
[1744338937188,1.29655,1543.6,1543.5,2.4957]
[1744338937387,1.29663,1543.5,1543.4,3.2078]
[1744338938783,1.29672,1543.4,1543.3,4.012]
[1744338943899,3.75872,1543.4,1543.3,4.012]
[1744338945202,1.2968,1543.3,1543.2,3.2078]
[1744338945397,3.7588,1543.3,1543.2,3.2078]
[1744338946096,1.29729,1542.8,1542.6,2.07809895]
[1744338946404,1.29717,1542.9,1542.7,5.36944772]
[1744338946695,1.29722,1542.8,1542.7,5.36944772]
[1744338947001,1.30690968,1542.9,1542.7,5.36944772]
[1744338947302,0.00970968,1542.9,1542.7,5.36944772]
[1744338947494,1.30688968,1542.9,1542.7,5.36944772]
[1744338947696,0.00970968,1542.9,1542.8,1.29722]
[1744338947895,1.30686968,1542.9,1542.7,10.36943772]
[1744338948096,0.00970968,1542.9,1542.7,9.07218772]
[1744338948302,1.29722,1542.8,1542.7,4.07218772]
[1744338949406,1.29747,1542.5,1542.4,0.78072895]
[1744338949698,8.5978,1542.8,1542.4,3.2078]
[1744338949898,11.84091,1542.8,1542.3,4.1349]
[1744338950099,1.29756,1542.4,1542.3,4.1349]
[1744338951005,3.2078,1542.6,1542.3,4.1349]
[1744338951306,1.29754,1542.5,1542.3,4.1349]
[1744338951904,1.29756,1542.4,1542.3,4.1349]
[1744338952102,11.8437,1542.4,1542.0,0.78072895]
[1744338952303,1.29781,1542.1,1542.0,3.98852895]
[1744338952607,1.29781,1542.1,1541.9,25.4258327]
[1744338953007,1.29786,1542.1,1541.9,24.1278927]
[1744338953307,1.2979,1542.0,1541.9,24.1278927]
[1744338953508,1.2979,1542.0,1541.9,2.066]
[1744338953705,1.2979,1542.0,1541.7,5.392]
[1744338953706,8.64629968,1542.1,1541.6,5.1958]
[1744338953906,10.94579968,1542.1,1541.6,7.1178]
[1744338954102,1.29813,1541.8,1541.6,8.41603]
[1744338954301,5.5073,1542.0,1541.6,8.416]
[1744338954504,1.29815,1541.7,1541.6,3.2078]
[1744338954710,1.29835,1541.5,1541.3,3.98942057]
[1744338954901,3.2078,1541.7,1541.4,1.8536]
[1744338955097,1.29823,1541.6,1541.4,1.8536]
[1744338955411,3.2078,1541.7,1541.4,1.8536]
[1744338955609,1.29823,1541.6,1541.4,1.8536]
[1744338956912,1.29823,1541.6,1541.5,2.329]
[1744338958414,1.2982,1541.7,1541.5,5.5368]
[1744338958606,1.29812,1541.8,1541.5,6.83508]
[1744338958806,1.29815,1541.7,1541.6,2.2538]
[1744338959011,1.29812,1541.8,1541.6,2.2538]
[1744338959507,3.58104,1541.9,1541.6,3.55199]
[1744338959708,2.283,1541.9,1541.6,3.55199]
[1744338959906,2.283,1541.9,1541.7,2.2538]
[1744338960213,3.21750968,1542.1,1541.7,3.55194]
[1744338960515,1.30757968,1542.1,1541.7,5.4616]
[1744338960715,1.30757968,1542.1,1541.8,6.1835]
[1744338961024,0.00970968,1542.1,1542.0,1.29789]
[1744338961209,0.00970968,1542.1,1542.0,3.55169]
[1744338962218,1.30751968,1542.1,1542.0,2.2538]
[1744338963418,0.00970968,1542.1,1542.0,2.2538]
[1744338963617,1.30751968,1542.1,1542.0,2.2538]
[1744338964118,0.00970968,1542.1,1542.0,3.55169]
[1744338964417,1.30751968,1542.1,1542.0,2.2538]
[1744338964620,3.62531968,1542.1,1542.0,2.2538]
[1744338967723,1.30751968,1542.1,1542.0,3.5517]
[1744338967925,1.30751968,1542.1,1542.0,2.2538]
[1744338969426,1.30751968,1542.1,1542.0,3.55169]
[1744338970126,0.00970968,1542.1,1542.0,3.55169]
[1744338970621,1.30751968,1542.1,1542.0,3.55169]
[1744338970818,1.30751968,1542.1,1542.0,2.2538]
[1744338972221,3.61001968,1542.1,1542.0,2.2538]
[1744338973528,1.29798,1541.9,1541.8,4.71015639]
[1744338973829,1.29798,1541.9,1541.8,6.066]
[1744338974125,0.00970968,1542.1,1541.8,10.05425639]
[1744338974428,1.30757968,1542.1,1542.0,1.29789]
[1744338974623,0.00970968,1542.1,1542.0,1.29789]
[1744338974823,1.29749,1542.5,1542.3,1.29761]
[1744338975133,1.29747,1542.5,1542.4,5.5506]
[1744338975627,1.29747,1542.5,1541.9,3.7556729]
[1744338975628,3.24419,1542.3,1541.5,3.2078]
[1744338975825,1.29796,1542.0,1541.9,2.3428]
[1744338976224,1.29798,1541.9,1541.8,0.79653011]
[1744338976425,4.50578,1541.9,1541.8,0.79653011]
[1744338976728,4.50578,1541.9,1541.8,0.00970968]
[1744338977028,6.65798,1541.9,1541.8,0.00970968]
[1744338977225,1.29835,1541.5,1541.3,3.27773]
[1744338977430,4.5062,1541.4,1541.3,1.9793]
[1744338977621,6.7507,1541.4,1541.3,1.9793]
[1744338977818,5.4523,1541.4,1541.1,20.0738927]
[1744338978029,1.29857,1541.2,1541.1,23.16410853]
[1744338978228,2.2445,1541.3,1541.1,22.3349927]
[1744338978425,1.30824968,1541.3,1541.1,22.3349927]
[1744338978730,1.30824968,1541.3,1541.2,3.04938706]
[1744338978931,3.55274968,1541.3,1541.2,3.04938706]
[1744338979937,0.00970968,1541.3,1541.2,3.04938706]
[1744338980129,1.30818968,1541.3,1541.2,4.96048706]
[1744338981829,3.45668968,1541.3,1541.2,4.96048706]
[1744338983428,3.45668968,1541.3,1541.2,3.04938706]
[1744338983731,1.30818968,1541.3,1541.2,3.04938706]
[1744338984334,0.00970968,1541.3,1541.2,4.34795706]
[1744338985031,0.00970968,1541.3,1541.2,9.34795706]
[1744338985530,0.00970968,1541.3,1541.2,4.34795706]
[1744338987036,0.00970968,1541.3,1541.2,9.34795706]
[1744338987828,0.00970968,1541.3,1541.2,4.34795706]
[1744338990137,1.29857,1541.2,1541.1,1.8549]
[1744338990732,1.29857,1541.2,1541.1,4.0408]
[1744338990933,1.29857,1541.2,1541.1,4.82804477]
[1744338991535,3.47107,1541.2,1541.1,4.82804477]
[1744338991834,3.47107,1541.2,1541.1,4.0408]
[1744338992137,3.47107,1541.2,1541.1,4.82804477]
[1744338992538,3.47107,1541.2,1541.1,4.0408]
[1744338992746,3.47107,1541.2,1541.1,2.1859]
[1744338993634,3.4712,1541.2,1541.1,2.1859]
[1744338993949,1.2987,1541.2,1541.1,2.1859]
[1744338994334,3.6211,1541.2,1541.1,2.1859]
[1744338995637,1.29887,1541.0,1540.9,2.78222506]
[1744338995839,6.62294,1541.1,1540.9,2.78222506]
[1744338996143,6.62294,1541.1,1541.0,2.1348]
[1744338996532,1.29887,1541.0,1540.9,1.9951]
[1744338996737,4.50664,1541.1,1540.9,3.29399]
[1744338996937,3.2078,1541.1,1540.8,0.78712506]
[1744338997139,2.1163,1541.0,1540.8,2.1348]
[1744338997338,1.29895,1540.9,1540.8,2.1348]
[1744338997639,3.2078,1540.9,1540.8,3.43383]
[1744338997837,3.2078,1540.9,1540.8,4.22095506]
[1744338998242,3.2078,1540.9,1540.8,3.43383]
[1744338998748,3.2078,1540.9,1540.8,4.22095506]
[1744338998939,3.2078,1541.1,1540.8,7.92192506]
[1744338999245,4.50658,1541.1,1541.0,1.29887]
[1744338999548,4.50658,1541.1,1540.9,5.54549]
[1744338999745,4.50658,1541.1,1541.0,4.2658]
[1744339001442,1.29878,1541.1,1541.0,4.2658]
[1744339001644,1.2987,1541.2,1541.0,4.2658]
[1744339001849,4.5065,1541.2,1541.1,2.1489]
[1744339003537,4.5065,1541.2,1541.1,3.44768]
[1744339003742,0.00970968,1541.3,1541.2,1.2987]
[1744339003941,0.00970968,1541.3,1541.2,5.4041]
[1744339004248,0.00970968,1541.3,1541.2,6.19192643]
[1744339004448,0.00970968,1541.3,1541.2,16.57492643]
[1744339004848,0.00970968,1541.3,1541.2,19.78272643]
[1744339005242,0.00970968,1541.3,1541.2,20.61236657]
[1744339006645,0.00970968,1541.3,1541.2,20.61439421]
[1744339006946,12.69883785,1541.6,1541.5,1.29844]
[1744339007144,12.69883785,1541.6,1541.5,2.08626643]
[1744339007346,12.69883785,1541.6,1541.5,2.91793421]
[1744339007545,12.69883785,1541.6,1541.5,7.05723421]
[1744339007844,4.506,1541.8,1541.6,1.29836]
[1744339008046,4.506,1541.8,1541.6,3.53436]
[1744339008047,0.00970968,1541.7,1541.6,3.53436]
[1744339008345,1.30798968,1541.7,1541.6,0.78782643]
[1744339008546,3.36368968,1541.7,1541.6,0.78782643]
[1744339009239,2.06540968,1541.7,1541.5,4.2241]
[1744339009545,0.00970968,1541.7,1541.6,1.29836]
[1744339009744,0.00970968,1541.7,1541.6,3.53436]
[1744339010145,0.00970968,1541.7,1541.6,4.32430995]
[1744339011950,0.00970968,1541.7,1541.6,5.15499309]
[1744339013452,0.00970968,1541.7,1541.6,7.53210995]
[1744339013847,0.00970968,1541.7,1541.6,8.36279309]
[1744339014149,0.00970968,1541.7,1541.6,5.15499309]
[1744339014350,0.00970968,1541.7,1541.6,4.32430995]
[1744339014651,0.00970968,1541.7,1541.6,13.36279309]
[1744339015048,0.00970968,1541.7,1541.6,4.32430995]
[1744339015652,0.00970968,1541.7,1541.6,7.53210995]
[1744339016047,0.00970968,1541.7,1541.6,12.53210995]
[1744339016552,0.00970968,1541.7,1541.6,13.36279309]
[1744339016749,5.07953514,1542.1,1542.0,1.29802]
[1744339017150,5.07953514,1542.1,1542.0,2.08796995]
[1744339017350,12.69883785,1542.4,1542.3,1.29777]
[1744339018151,12.69883785,1542.4,1542.3,3.48127]
[1744339018654,12.69883785,1542.4,1542.3,8.48127]
[1744339018851,12.69883785,1542.4,1542.3,10.27577]
[1744339019049,12.69883785,1542.4,1542.3,5.27577]
[1744339019245,12.69883785,1542.4,1542.3,3.48127]
[1744339019450,12.69883785,1542.4,1542.3,5.27577]
[1744339020158,12.69883785,1542.4,1542.3,10.27577]
[1744339020361,12.69883785,1542.4,1542.3,11.06571995]
[1744339021349,12.69883785,1542.4,1542.3,5.27577]
[1744339021553,12.69883785,1542.4,1542.2,3.93874963]
[1744339021760,18.15973785,1542.4,1542.2,6.08964963]
[1744339022055,3.55087,1542.3,1542.2,0.79965963]
[1744339022250,5.46967,1542.3,1542.2,0.79965963]
[1744339022446,10.46967,1542.3,1542.2,0.00970968]
[1744339022846,10.46967,1542.3,1541.7,3.96496995]
[1744339022847,1.29805,1542.0,1541.7,3.96496995]
[1744339023048,1.29805,1542.0,1541.7,4.78374995]
[1744339023358,2.1703,1541.9,1541.7,5.29201]
[1744339023551,2.1703,1541.9,1541.7,3.9938]
[1744339023859,5.3781,1541.9,1541.7,1.2982]
[1744339024056,5.3781,1541.9,1541.7,3.4152]
[1744339024354,5.3781,1541.9,1541.6,23.24067185]
[1744339024355,1.29824,1541.8,1541.6,15.98967185]
[1744339024559,2.1703,1541.7,1541.6,15.1997219]
[1744339024858,2.1703,1541.7,1541.6,16.4980819]
[1744339025055,5.3781,1541.7,1541.6,16.4980819]
[1744339026161,5.3781,1541.7,1541.6,0.00970968]
[1744339026352,5.3781,1541.7,1541.6,1.30806968]
[1744339026948,11.67638,1541.7,1541.6,0.00970968]
[1744339027953,5.3781,1541.7,1541.6,0.00970968]
[1744339028762,6.67638,1541.7,1541.6,0.00970968]
[1744339031451,11.67638,1541.7,1541.6,0.00970968]
[1744339032661,5.3781,1541.7,1541.6,1.30806968]
[1744339033359,6.67638,1541.7,1541.6,0.00970968]
[1744339034363,3.2078,1541.7,1541.6,1.30806968]
[1744339034563,7.2332,1542.0,1541.6,9.00370924]
[1744339034564,5.067,1542.0,1541.6,9.00370924]
[1744339034765,3.2078,1542.0,1541.9,1.29811]
[1744339035165,3.2078,1542.0,1541.8,4.00253956]
[1744339035369,6.74753,1542.0,1541.9,2.2714]
[1744339035570,1.29811,1541.9,1541.8,0.78619956]
[1744339035771,2.2417,1541.9,1541.7,6.11694956]
[1744339035971,8.28733514,1542.0,1541.8,1.29819]
[1744339036176,8.28733514,1542.0,1541.9,2.2714]
[1744339036372,8.28733514,1542.0,1541.9,3.56951]
[1744339036874,9.58535514,1542.0,1541.9,2.2714]
[1744339037073,11.82705514,1542.0,1541.9,2.2714]
[1744339037275,11.82705514,1542.0,1541.8,2.08435956]
[1744339037478,10.52903514,1542.0,1541.9,2.2714]
[1744339038177,10.52903514,1542.0,1541.9,3.56951]
[1744339038481,1.29811,1541.9,1541.8,0.78619956]
[1744339038679,7.16781,1541.9,1541.8,0.78619956]
[1744339038879,1.29828,1541.7,1541.6,0.00970968]
[1744339039084,4.50608,1541.7,1541.6,0.00970968]
[1744339040373,9.50608,1541.7,1541.6,0.00970968]
[1744339040875,6.63978,1541.7,1541.6,0.00970968]
[1744339042285,11.63978,1541.7,1541.6,0.00970968]
[1744339043183,6.63978,1541.7,1541.6,0.00970968]
[1744339043586,1.29853,1541.4,1541.3,2.0752]
[1744339043883,4.50633,1541.4,1541.3,2.0752]
[1744339044886,6.67043,1541.4,1541.3,2.0752]
[1744339046386,1.2987,1541.2,1541.1,4.0414]
[1744339046585,4.5065,1541.2,1541.1,4.0414]
[1744339047786,4.5065,1541.2,1541.1,2.1119]
[1744339048285,3.2078,1541.2,1541.1,2.1119]
[1744339048489,4.5065,1541.2,1541.1,2.1119]
[1744339048687,6.5507,1541.2,1541.1,2.1119]
[1744339048883,3.2078,1541.2,1541.1,3.41068]
[1744339049083,3.2078,1541.2,1541.1,2.1119]
[1744339049084,1.2987,1541.2,1541.1,2.1119]
[1744339049283,4.5065,1541.2,1541.1,2.1119]
[1744339049995,1.29887,1541.0,1540.9,2.59994408]
[1744339050185,1.29887,1541.0,1540.9,4.77614408]
[1744339050385,4.50667,1541.0,1540.9,4.77614408]
[1744339050592,4.50667,1541.0,1540.9,3.9885]
[1744339050790,1.29895,1540.9,1540.8,2.63574408]
[1744339050993,4.5067,1541.0,1540.8,6.09789408]
[1744339051190,4.5067,1541.0,1540.9,2.1632]
[1744339051392,3.2078,1541.0,1540.9,3.46215]
[1744339051996,4.50667,1541.0,1540.9,2.1632]
[1744339052194,3.2078,1541.0,1540.9,2.1632]
[1744339052492,4.50667,1541.0,1540.9,2.1632]
[1744339053891,3.2078,1541.0,1540.9,3.46215]
[1744339054690,3.2078,1541.2,1541.0,1.29884]
[1744339054995,3.2078,1541.2,1541.1,3.49808]
[1744339055203,3.2078,1541.2,1541.1,5.25398]
[1744339058394,3.2078,1541.4,1541.3,1.29861]
[1744339058790,3.2078,1541.4,1541.3,6.29861]
[1744339058990,3.2078,1541.4,1541.3,8.41751]
[1744339059197,3.2078,1541.4,1541.3,9.20544931]
[1744339060498,0.00970968,1541.5,1541.4,1.29853]
[1744339060699,0.00970968,1541.5,1541.4,7.06163]
[1744339061099,0.00970968,1541.5,1541.4,1.29853]
[1744339061300,2.25280968,1541.5,1541.4,1.29853]
[1744339062500,2.25280968,1541.5,1541.4,3.52893]
[1744339063602,0.00970968,1541.5,1541.4,3.52893]
[1744339063802,0.00970968,1541.5,1541.4,5.38143]
[1744339064100,0.00970968,1541.5,1541.4,11.16936931]
[1744339064492,0.00970968,1541.5,1541.4,6.16936931]
[1744339065596,0.00970968,1541.5,1541.4,11.16936931]
[1744339065791,7.32543514,1542.0,1541.9,1.29811]
[1744339065792,5.07953514,1542.0,1541.9,1.29811]
[1744339066399,5.07953514,1542.0,1541.9,5.36401]
[1744339067501,5.07953514,1542.0,1541.9,6.15210221]
[1744339068003,5.07953514,1542.0,1541.9,2.08620221]
[1744339068304,8.28733514,1542.0,1541.9,4.25120221]
[1744339068503,8.28733514,1542.0,1541.9,3.46311]
[1744339070093,5.07953514,1542.0,1541.9,14.61820221]
[1744339070296,0.00970968,1542.1,1542.0,1.29802]
[1744339070504,0.00970968,1542.1,1542.0,5.25022]
[1744339074300,0.00970968,1542.1,1542.0,10.25022]
[1744339074507,9.68e-06,1542.1,1542.0,10.25022]
[1744339074704,9.68e-06,1542.1,1542.0,11.03831221]
[1744339075409,9.68e-06,1542.1,1542.0,6.03831221]
[1744339075708,9.68e-06,1542.1,1542.0,4.74029221]
[1744339075911,9.68e-06,1542.1,1542.0,5.25022]
[1744339076301,9.68e-06,1542.1,1542.0,8.45802]
[1744339076608,9.68e-06,1542.1,1542.0,13.45802]
[1744339077009,9.68e-06,1542.1,1542.0,5.25022]
[1744339077605,9.68e-06,1542.1,1542.0,13.45802]
[1744339078212,9.68e-06,1542.1,1542.0,8.45802]
[1744339078513,9.68e-06,1542.1,1542.0,13.45802]
[1744339080208,9.68e-06,1542.1,1542.0,8.45802]
[1744339082114,9.68e-06,1542.1,1542.0,13.45802]
[1744339083216,9.68e-06,1542.1,1542.0,8.45802]
[1744339083619,9.68e-06,1542.1,1542.0,13.45802]
[1744339083812,9.68e-06,1542.1,1542.0,15.07196029]
[1744339084414,9.68e-06,1542.1,1542.0,15.56065882]
[1744339084819,9.68e-06,1542.1,1542.0,15.07196029]
[1744339086021,9.68e-06,1542.1,1542.0,10.07226712]
[1744339086222,9.68e-06,1542.1,1542.0,9.24611221]
[1744339086524,9.68e-06,1542.1,1542.0,2.08611221]
[1744339086819,9.68e-06,1542.1,1542.0,1.29802]
[1744339087322,9.68e-06,1542.1,1542.0,3.45272]
[1744339087816,2.29560968,1542.1,1542.0,3.45272]
[1744339088014,2.29560968,1542.1,1542.0,1.29802]
[1744339088214,4.27890968,1542.1,1542.0,1.29802]
[1744339090227,2.29560968,1542.1,1542.0,1.29802]
[1744339090428,2.29560968,1542.1,1542.0,3.38982]
[1744339090629,9.68e-06,1542.1,1542.0,3.38982]
[1744339091030,9.68e-06,1542.1,1542.0,4.17791221]
[1744339093234,9.68e-06,1542.1,1542.0,5.00738036]
[1744339095232,9.68e-06,1542.1,1542.0,10.00840234]
[1744339095432,9.68e-06,1542.1,1542.0,10.49893952]
[1744339097934,2.2901,1542.7,1542.6,1.29752]
[1744339098129,1.9083,1542.8,1542.7,1.29743]
[1744339098434,3.2078,1543.0,1542.9,1.29727]
[1744339098627,10.0225,1543.0,1542.9,1.29727]
[1744339098829,10.0225,1543.0,1542.7,2.2198]
[1744339099035,1.29727,1542.9,1542.8,0.78809221]
[1744339099232,6.50227,1542.9,1542.8,0.78809221]
[1744339099434,11.50227,1542.9,1542.8,0.78809221]
[1744339099639,1.29735,1542.8,1542.7,0.00970968]
[1744339099933,5.20195,1542.8,1542.7,0.00970968]
[1744339100132,10.20195,1542.8,1542.7,0.00970968]
[1744339100326,1.29743,1542.7,1542.6,0.78809221]
[1744339100636,1.29767,1542.5,1542.3,1.29775]
[1744339100829,5.0581,1542.4,1542.3,1.29775]
[1744339101030,3.2078,1542.6,1542.5,1.29752]
[1744339101436,3.2078,1542.6,1542.5,2.08717346]
[1744339102435,5.2191,1542.6,1542.5,2.08717346]
[1744339103836,11.51662,1542.6,1542.5,0.78965346]
[1744339104029,5.2191,1542.6,1542.5,2.08725346]
[1744339104229,2.0113,1542.6,1542.5,1.2976]
[1744339104534,2.0113,1542.6,1542.5,3.322]
[1744339105033,2.0113,1542.6,1542.5,4.11163969]
[1744339105534,5.2191,1542.6,1542.5,0.78963969]
[1744339105726,11.51662,1542.6,1542.5,0.78963969]
[1744339105930,10.2191,1542.6,1542.5,0.78963969]
[1744339106129,11.51662,1542.6,1542.5,0.78963969]
[1744339107038,1.2976,1542.5,1542.4,0.00970968]
[1744339107236,5.2386,1542.5,1542.4,0.00970968]
[1744339107440,10.2386,1542.5,1542.4,0.00970968]
[1744339110539,21.30724064,1542.5,1542.4,0.00970968]
[1744339113742,1.29794,1542.1,1541.9,3.45168]
[1744339113937,3.2078,1542.1,1542.0,3.43622]
[1744339114333,4.50574,1542.1,1542.0,3.43622]
[1744339115139,4.50574,1542.1,1541.9,1.29804]
[1744339115140,6.71034,1542.1,1541.9,1.29804]
[1744339115340,2.2046,1542.0,1541.9,3.29794]
[1744339116143,2.2046,1542.0,1541.9,4.08685411]
[1744339116442,1.29836,1541.6,1541.5,25.34356778]
[1744339116636,4.50616,1541.6,1541.5,25.34356778]
[1744339116838,9.50616,1541.6,1541.5,25.34356778]
[1744339117038,11.71076,1541.6,1541.5,25.34356778]
[1744339117238,6.71076,1541.6,1541.5,25.34356778]
[1744339117437,11.71076,1541.6,1541.5,25.34356778]
[1744339118538,1.29861,1541.3,1541.2,1.9999]
[1744339118744,4.50641,1541.3,1541.2,1.9999]
[1744339119046,1.2987,1541.2,1541.1,1.754]
[1744339119235,2.63111849,1541.1,1540.8,9.32801217]
[1744339119434,3.2078,1540.9,1540.5,14.5485305]
[1744339119640,3.2078,1540.9,1540.4,0.92169089]
[1744339119641,1.29929,1540.5,1540.4,0.92169089]
[1744339119849,4.27214173,1540.4,1540.3,19.80854874]
[1744339120139,10.52356022,1540.4,1540.3,6.17933678]
[1744339120347,1.29946,1540.3,1540.2,32.20710524]
[1744339120541,1.29946,1540.3,1540.2,30.29231524]
[1744339120736,6.29946,1540.3,1540.2,30.29231524]
[1744339121044,6.29946,1540.3,1540.2,28.55451524]
[1744339121245,6.65746,1540.3,1540.2,28.55451524]
[1744339121849,1.29946,1540.3,1540.2,35.04491524]
[1744339122146,1.29946,1540.3,1540.2,37.25561524]
[1744339122744,13.28982022,1540.4,1540.2,37.25561524]
[1744339123047,1.29946,1540.3,1540.2,37.25561524]
[1744339123947,13.28980022,1540.4,1540.2,8.7011]
[1744339124242,12.26130022,1540.4,1540.2,8.7011]
[1744339124443,1.29946,1540.3,1540.2,8.7011]
[1744339125842,12.26131022,1540.4,1540.2,8.7011]
[1744339126042,10.96189022,1540.4,1540.2,8.7011]
[1744339126345,1.29946,1540.3,1540.2,8.7011]
[1744339129347,5.60389022,1540.4,1540.3,1.29946]
[1744339129548,5.60389022,1540.4,1540.3,9.63146]
[1744339130455,2.97277173,1540.4,1540.3,9.63146]
[1744339130852,2.97277173,1540.4,1540.2,2.09615374]
[1744339131055,2.97277173,1540.4,1540.3,1.29946]
[1744339131349,0.00970968,1540.5,1540.4,1.29937]
[1744339133655,1.29937,1540.4,1540.0,7.90958319]
[1744339134258,1.29937,1540.4,1540.3,1.29946]
[1744339134259,3.2078,1540.4,1540.3,1.29946]
[1744339134557,0.00970968,1540.5,1540.4,1.29937]
[1744339136055,2.63111849,1540.8,1540.7,1.29912]
[1744339136261,5.00809893,1540.9,1540.8,1.29903]
[1744339136458,5.00809893,1541.0,1540.9,1.29895]
[1744339137155,5.00809893,1541.0,1540.9,3.31985]
[1744339137860,5.00809893,1541.0,1540.9,2.0209]
[1744339138061,6.30696893,1541.0,1540.9,2.0209]
[1744339138461,8.28996893,1541.0,1540.9,2.0209]
[1744339139257,13.28996893,1541.0,1540.9,2.0209]
[1744339139470,1.29895,1540.9,1540.8,0.00970968]
[1744339139657,11.88155,1540.9,1540.8,0.00970968]
[1744339139857,16.88155,1540.9,1540.8,0.00970968]
[1744339140065,19.51266849,1540.9,1540.8,9.68e-06]
[1744339140358,3.24823,1540.5,1540.0,2.1389]
[1744339140558,4.50742,1540.1,1540.0,2.1389]
[1744339141359,3.2078,1540.1,1540.0,2.1389]
[1744339141757,4.50742,1540.1,1540.0,2.1389]
[1744339144163,1.29962,1540.1,1540.0,2.1389]
[1744339144365,4.50742,1540.1,1540.0,2.1389]
[1744339144859,3.2078,1540.1,1540.0,2.1389]
[1744339145467,0.00970968,1540.2,1540.1,1.29962]
[1744339145668,0.00970968,1540.2,1540.1,3.06502]
[1744339145969,7.13813849,1540.6,1540.4,1.29929]
[1744339146167,1.29932,1540.5,1540.3,1.2994]
[1744339146368,1.29932,1540.5,1540.4,2.0187]
[1744339146569,9.51515893,1540.6,1540.4,2.0187]
[1744339146761,9.51515893,1540.6,1540.4,3.31804]
[1744339147257,8.21589893,1540.6,1540.5,1.29929]
[1744339147460,8.21589893,1540.6,1540.5,3.31799]
[1744339148174,5.00809893,1540.6,1540.5,6.52579]
[1744339148373,5.00809893,1540.6,1540.5,7.35462676]
[1744339148565,5.00809893,1540.6,1540.5,14.16792676]
[1744339149163,5.00809893,1540.6,1540.5,15.87902676]
[1744339149463,7.52185807,1540.7,1540.6,1.2992]
[1744339149665,10.15048537,1540.9,1540.8,1.29903]
[1744339149866,8.07714237,1540.9,1540.8,5.33566676]
[1744339150169,8.07714237,1540.9,1540.8,10.33566676]
[1744339150469,1.2987,1541.2,1541.0,1.29883]
[1744339150664,2.078,1541.2,1541.0,1.29883]
[1744339150860,4.51612968,1541.3,1541.1,1.29878]
[1744339151071,6.61182968,1541.3,1541.1,1.29878]
[1744339151363,6.61182968,1541.3,1540.6,3.2078]
[1744339151364,2.63111849,1541.2,1540.6,3.2078]
[1744339151567,1.29912,1540.7,1540.5,1.29926]
[1744339151769,3.39491,1540.6,1540.4,1.29931]
[1744339151967,6.60271,1540.6,1540.4,1.29931]
[1744339152963,1.29929,1540.5,1540.4,1.9752]
[1744339153168,1.29937,1540.4,1540.3,0.00970968]
[1744339153471,4.50717,1540.4,1540.3,0.00970968]
[1744339153666,6.24137,1540.4,1540.3,0.00970968]
[1744339153971,8.33707,1540.4,1540.3,0.00970968]
[1744339155677,13.33707,1540.4,1540.3,0.00970968]
[1744339157074,8.33707,1540.4,1540.3,0.00970968]
[1744339157677,10.00877,1540.4,1540.3,0.00970968]
[1744339158378,12.63988849,1540.4,1540.3,0.00970968]
[1744339159773,17.63988849,1540.4,1540.3,0.00970968]
[1744339160076,3.24865,1540.3,1539.8,3.8041]
[1744339160274,1.29979,1539.9,1539.6,1.30001]
[1744339160477,1.8796,1539.8,1539.7,1.29996]
[1744339161272,1.29975,1540.0,1539.8,1.29988]
[1744339161471,3.17931,1540.0,1539.8,1.29982]
[1744339162176,1.8796,1540.0,1539.9,1.29979]
[1744339162876,4.50749,1540.1,1539.9,1.29979]
[1744339163078,4.50749,1540.1,1540.0,2.0434]
[1744339164375,3.2078,1540.1,1540.0,3.34311]
[1744339164580,2.0307,1540.2,1540.1,1.29962]
[1744339168387,3.005276,1540.2,1540.1,1.29962]
[1744339168586,0.974576,1540.2,1540.1,1.29962]
[1744339169090,2.274186,1540.2,1540.0,2.0434]
[1744339169382,3.24928,1540.0,1539.6,0.00974184]
[1744339169589,4.50774,1539.8,1539.7,1.9575]
[1744339170386,3.2078,1539.8,1539.7,3.25746]
[1744339170890,5.0866,1539.8,1539.7,3.25746]
[1744339171091,1.8788,1539.8,1539.7,3.25746]
[1744339171987,6.4393,1540.0,1539.8,1.29988]
[1744339172190,1.8933,1539.9,1539.8,1.29988]
[1744339172689,3.19309,1539.9,1539.8,1.29988]
[1744339172886,3.19309,1539.9,1539.7,3.25741]
[1744339173089,3.19309,1539.9,1539.8,1.29988]
[1744339173290,3.19309,1539.9,1539.7,3.25739]
[1744339173491,3.19309,1539.9,1539.8,1.29988]
[1744339173692,1.8933,1539.9,1539.8,1.29988]
[1744339174894,4.8185,1540.0,1539.9,1.29979]
[1744339175093,3.2078,1540.0,1539.9,1.29979]
[1744339175395,3.2078,1540.1,1539.8,4.96749]
[1744339175598,3.2078,1540.1,1539.9,3.6548]
[1744339175798,3.2078,1540.1,1540.0,1.29971]
[1744339175996,3.2078,1540.1,1540.0,3.24411]
[1744339177495,19.85410586,1540.3,1540.2,1.29954]
[1744339177695,15.80456586,1540.3,1540.2,1.29954]
[1744339177894,14.50510586,1540.3,1540.2,1.29954]
[1744339178095,12.61910586,1540.3,1540.2,1.29954]
[1744339178899,12.61910586,1540.3,1540.2,6.29954]
[1744339179594,13.59361497,1540.3,1540.2,6.29954]
[1744339179791,0.97450911,1540.3,1540.2,6.29954]
[1744339181199,0.97450911,1540.3,1540.2,1.29954]
[1744339181691,0.97450911,1540.3,1540.2,4.89214]